fUSD/lending_fUSD_20250311
["ID","MTS","AMOUNT","RATE_DAILY","PERIOD"]
[355953825,1741731044195,-535.67,9.258e-05,2]
[355953826,1741731044204,-500.0,9.258e-05,2]
[355953827,1741731044213,-500.0,9.258e-05,2]
[355953828,1741731044222,-732.86,9.258e-05,2]
[355953829,1741731044231,-583.1804515,9.258e-05,2]
[355953830,1741731044240,-558.05,9.258e-05,2]
[355953831,1741731044249,-500.0,9.258e-05,2]
[355953832,1741731044258,-500.0,9.258e-05,2]
[355953833,1741731044267,-514.7,9.258e-05,2]
[355953834,1741731044276,-683.66,9.258e-05,2]
[355953835,1741731044285,-958.05,9.258e-05,2]
[355953836,1741731044295,-500.0,9.258e-05,2]
[355953837,1741731044304,-999.55,9.258e-05,2]
[355953838,1741731044313,-500.0,9.258e-05,2]
[355953839,1741731044323,-500.0,9.258e-05,2]
[355953840,1741731044332,-500.0,9.258e-05,2]
[355953841,1741731044341,-500.0,9.258e-05,2]
[355953842,1741731044350,-500.0,9.258e-05,2]
[355953843,1741731044359,-763.15,9.258e-05,2]
[355953844,1741731044368,-857.27,9.258e-05,2]
[355953845,1741731044377,-500.0,9.258e-05,2]
[355953846,1741731044387,-500.0,9.258e-05,2]
[355953847,1741731044396,-566.67,9.258e-05,2]
[355953848,1741731044405,-549.86,9.258e-05,2]
[355953849,1741731044414,-575.87,9.258e-05,2]
[355953850,1741731044423,-500.0,9.258e-05,2]
[355953851,1741731044432,-500.0,9.258e-05,2]
[355953852,1741731044441,-897.19,9.258e-05,2]
[355953853,1741731044450,-520.75,9.258e-05,2]
[355953854,1741731044459,-502.25677757,9.258e-05,2]
[355953855,1741731044468,-500.0,9.258e-05,2]
[355953856,1741731044477,-1138.93,9.258e-05,2]
[355953857,1741731044486,-500.0,9.258e-05,2]
[355953858,1741731044495,-500.0,9.258e-05,2]
[355953859,1741731044505,-500.0,9.258e-05,2]
[355953860,1741731044514,-500.0,9.258e-05,2]
[355953861,1741731044523,-500.0,9.258e-05,2]
[355953862,1741731044532,-500.0,9.258e-05,2]
[355953863,1741731044542,-874.76,9.258e-05,2]
[355953864,1741731044551,-561.55,9.258e-05,2]
[355953865,1741731044560,-500.0,9.258e-05,2]
[355953866,1741731044569,-500.0,9.258e-05,2]
[355953867,1741731044579,-898.38,9.258e-05,2]
[355953868,1741731044588,-575.81,9.258e-05,2]
[355953869,1741731044599,-859.08,9.258e-05,2]
[355953870,1741731044610,-500.0,9.258e-05,2]
[355953871,1741731044620,-846.5,9.258e-05,2]
[355953872,1741731044629,-500.0,9.258e-05,2]
[355953873,1741731044641,-1062.64,9.258e-05,2]
[355953874,1741731044651,-977.39,9.258e-05,2]
[355953875,1741731044660,-500.0,9.258e-05,2]
[355953876,1741731044669,-500.0,9.258e-05,2]
[355953877,1741731044680,-500.0,9.258e-05,2]
[355953878,1741731044690,-623.85,9.258e-05,2]
[355953879,1741731044699,-500.0,9.258e-05,2]
[355953880,1741731044708,-505.05,9.258e-05,2]
[355953881,1741731044717,-500.0,9.258e-05,2]
[355953882,1741731044726,-500.0,9.258e-05,2]
[355953883,1741731044735,-500.0,9.258e-05,2]
[355953884,1741731044745,-500.0,9.258e-05,2]
[355953885,1741731044754,-764.37,9.258e-05,2]
[355953886,1741731044763,-500.0,9.258e-05,2]
[355953887,1741731044772,-500.0,9.258e-05,2]
[355953888,1741731044781,-500.0,9.258e-05,2]
[355953889,1741731044791,-544.40666794,9.258e-05,2]
[355953890,1741731044800,-500.0,9.258e-05,2]
[355953891,1741731044809,-500.0,9.258e-05,2]
[355953892,1741731044818,-500.0,9.258e-05,2]
[355953893,1741731044827,-500.0,9.258e-05,2]
[355953894,1741731044836,-500.0,9.258e-05,2]
[355953895,1741731044846,-500.0,9.258e-05,2]
[355953896,1741731044855,-500.0,9.258e-05,2]
[355953897,1741731044866,-500.0,9.258e-05,2]
[355953898,1741731044875,-500.0,9.258e-05,2]
[355953899,1741731044884,-500.0,9.258e-05,2]
[355953900,1741731044894,-500.0,9.258e-05,2]
[355953901,1741731044903,-500.0,9.258e-05,2]
[355953902,1741731044912,-500.0,9.258e-05,2]
[355953903,1741731044922,-726.69,9.258e-05,2]
[355953904,1741731044931,-643.1,9.258e-05,2]
[355953905,1741731044941,-500.0,9.258e-05,2]
[355953906,1741731044950,-500.0,9.258e-05,2]
[355953907,1741731044959,-500.0,9.258e-05,2]
[355953908,1741731044968,-500.0,9.258e-05,2]
[355953909,1741731044978,-500.0,9.258e-05,2]
[355953910,1741731044988,-1011.21,9.258e-05,2]
[355953911,1741731044997,-629.75,9.258e-05,2]
[355953912,1741731045006,-500.0,9.258e-05,2]
[355953913,1741731045017,-680.42,9.258e-05,2]
[355953914,1741731045027,-1074.68,9.258e-05,2]
[355953915,1741731045037,-500.0,9.258e-05,2]
[355953916,1741731045046,-500.0,9.258e-05,2]
[355953917,1741731045055,-500.0,9.258e-05,2]
[355953918,1741731045064,-1095.55,9.258e-05,2]
[355953919,1741731045073,-500.0,9.258e-05,2]
[355953920,1741731045083,-500.0,9.258e-05,2]
[355953921,1741731045091,-501.87,9.258e-05,2]
[355953922,1741731045101,-500.0,9.258e-05,2]
[355953923,1741731045110,-653.51,9.258e-05,2]
[355953924,1741731045119,-500.0,9.258e-05,2]
[355953925,1741731045128,-1284.38,9.258e-05,2]
[355953926,1741731045138,-500.0,9.258e-05,2]
[355953927,1741731045147,-500.0,9.258e-05,2]
[355953928,1741731045156,-681.63,9.258e-05,2]
[355953929,1741731045165,-1032.42,9.258e-05,2]
[355953930,1741731045175,-500.0,9.258e-05,2]
[355953931,1741731045184,-826.88,9.258e-05,2]
[355953932,1741731045193,-500.0,9.258e-05,2]
[355953933,1741731045203,-534.46,9.258e-05,2]
[355953934,1741731045212,-500.0,9.258e-05,2]
[355953935,1741731045221,-500.0,9.258e-05,2]
[355953936,1741731045230,-500.0,9.258e-05,2]
[355953937,1741731045239,-500.0,9.258e-05,2]
[355953938,1741731045499,-582.14,9.259e-05,2]
[355953939,1741731045508,-905.41,9.259e-05,2]
[355953940,1741731045517,-500.0,9.259e-05,2]
[355953941,1741731045526,-500.0,9.259e-05,2]
[355953942,1741731045535,-500.0,9.259e-05,2]
[355953943,1741731045545,-738.88,9.259e-05,2]
[355953944,1741731045554,-500.0,9.259e-05,2]
[355953945,1741731045563,-963.15,9.259e-05,2]
[355953946,1741731045572,-500.0,9.259e-05,2]
[355953947,1741731045582,-500.0,9.259e-05,2]
[355953948,1741731045591,-500.0,9.259e-05,2]
[355953949,1741731045604,-400.0,9.3e-05,3]
[355953950,1741731045615,-541.0,9.382e-05,2]
[355953951,1741731045624,-1428.0,9.382e-05,2]
[355953952,1741731045634,-907.0,9.382e-05,2]
[355953953,1741731045646,-1270.0,9.382e-05,2]
[355953954,1741731045655,-4077.0,9.382e-05,2]
[355953955,1741731045664,-460.55,9.4e-05,2]
[355953956,1741731045674,-800.0,9.4e-05,3]
[355953957,1741731045684,-453.093,9.407e-05,2]
[355953958,1741731045694,-3932.0,9.407e-05,2]
[355953959,1741731045703,-150.0,9.407e-05,2]
[355953960,1741731045713,-1113.0,9.407e-05,2]
[355953961,1741731045722,-500.0,9.414e-05,2]
[355953962,1741731045731,-650.66,9.414e-05,2]
[355953963,1741731045740,-500.0,9.414e-05,2]
[355953964,1741731045749,-543.02,9.414e-05,2]
[355953965,1741731045758,-500.0,9.414e-05,2]
[355953966,1741731045768,-2043.78,9.414e-05,2]
[355953967,1741731045777,-932.34,9.414e-05,2]
[355953968,1741731045787,-500.0,9.414e-05,2]
[355953969,1741731045796,-936.68,9.414e-05,2]
[355953970,1741731045805,-602.81,9.414e-05,2]
[355953971,1741731045814,-500.0,9.414e-05,2]
[355953972,1741731045823,-1278.0,9.415e-05,2]
[355953973,1741731045833,-2031.0,9.415e-05,2]
[355953974,1741731045842,-534.299,9.415e-05,2]
[355953975,1741731045851,-786.0,9.415e-05,2]
[355953976,1741731045860,-1200.0,9.5e-05,3]
[355953977,1741731045871,-1000.0,9.518e-05,2]
[355953978,1741731045880,-1207.12,9.53e-05,2]
[355953979,1741731045890,-699.61,9.53e-05,2]
[355953980,1741731045900,-1343.95,9.53e-05,2]
[355953981,1741731045909,-500.0,9.53e-05,2]
[355953982,1741731045919,-766.13,9.53e-05,2]
[355953983,1741731045928,-500.0,9.53e-05,2]
[355953984,1741731045937,-500.0,9.53e-05,2]
[355953985,1741731045946,-500.0,9.53e-05,2]
[355953986,1741731045955,-813.62,9.53e-05,2]
[355953987,1741731045964,-1638.48,9.53e-05,2]
[355953988,1741731045973,-513.43216536,9.53e-05,2]
[355953989,1741731045983,-584.7,9.53e-05,2]
[355953990,1741731045992,-500.0,9.53e-05,2]
[355953991,1741731046001,-927.28,9.53e-05,2]
[355953992,1741731046010,-500.0,9.53e-05,2]
[355953993,1741731046020,-1467.78,9.53e-05,2]
[355953994,1741731046029,-500.0,9.531e-05,2]
[355953995,1741731046038,-500.0,9.531e-05,2]
[355953996,1741731046047,-500.0,9.531e-05,2]
[355953997,1741731046057,-500.0,9.531e-05,2]
[355953998,1741731046066,-964.83,9.531e-05,2]
[355953999,1741731046075,-500.0,9.531e-05,2]
[355954000,1741731046084,-500.0,9.531e-05,2]
[355954001,1741731046093,-757.76,9.531e-05,2]
[355954002,1741731046102,-724.65,9.531e-05,2]
[355954003,1741731046113,-544.15,9.531e-05,2]
[355954004,1741731046122,-985.91,9.531e-05,2]
[355954005,1741731046132,-500.0,9.531e-05,2]
[355954006,1741731046141,-500.0,9.531e-05,2]
[355954007,1741731046150,-500.0,9.531e-05,2]
[355954008,1741731046160,-533.11,9.531e-05,2]
[355954009,1741731046169,-500.0,9.531e-05,2]
[355954010,1741731046178,-691.24,9.531e-05,2]
[355954011,1741731046187,-500.0,9.531e-05,2]
[355954012,1741731046196,-339.14446603,9.531e-05,2]
[355954013,1741731046205,-545.41,9.531e-05,2]
[355954014,1741731046214,-500.0,9.531e-05,2]
[355954015,1741731046223,-500.0,9.531e-05,2]
[355954016,1741731046232,-838.2,9.531e-05,2]
[355954017,1741731046241,-787.02,9.531e-05,2]
[355954018,1741731046251,-500.0,9.531e-05,2]
[355954019,1741731046260,-500.0,9.531e-05,2]
[355954020,1741731046269,-943.57,9.531e-05,2]
[355954021,1741731046278,-500.0,9.531e-05,2]
[355954022,1741731046287,-500.0,9.531e-05,2]
[355954023,1741731046296,-500.0,9.531e-05,2]
[355954024,1741731046305,-500.0,9.531e-05,2]
[355954025,1741731046314,-844.29,9.531e-05,2]
[355954026,1741731046324,-500.0,9.531e-05,2]
[355954027,1741731046333,-500.0,9.531e-05,2]
[355954028,1741731046342,-500.0,9.531e-05,2]
[355954029,1741731046351,-500.0,9.531e-05,2]
[355954030,1741731046360,-895.51,9.531e-05,2]
[355954031,1741731046370,-500.0,9.531e-05,2]
[355954032,1741731046379,-500.0,9.531e-05,2]
[355954033,1741731046388,-958.79,9.531e-05,2]
[355954034,1741731046398,-500.0,9.531e-05,2]
[355954035,1741731046407,-500.0,9.531e-05,2]
[355954036,1741731046416,-500.0,9.531e-05,2]
[355954037,1741731046428,-889.81,9.531e-05,2]
[355954038,1741731046437,-500.0,9.531e-05,2]
[355954039,1741731046446,-500.0,9.531e-05,2]
[355954040,1741731046456,-500.0,9.531e-05,2]
[355954041,1741731046466,-500.0,9.531e-05,2]
[355954042,1741731046475,-500.0,9.531e-05,2]
[355954043,1741731046484,-504.29,9.531e-05,2]
[355954044,1741731046494,-523.78669402,9.531e-05,2]
[355954045,1741731046503,-500.0,9.531e-05,2]
[355954046,1741731046512,-819.7,9.531e-05,2]
[355954047,1741731046522,-500.0,9.531e-05,2]
[355954048,1741731046531,-593.96,9.531e-05,2]
[355954049,1741731046541,-753.27,9.531e-05,2]
[355954050,1741731046550,-500.0,9.531e-05,2]
[355954051,1741731046560,-500.0,9.531e-05,2]
[355954052,1741731046569,-500.0,9.531e-05,2]
[355954053,1741731046579,-500.0,9.531e-05,2]
[355954054,1741731046588,-500.0,9.531e-05,2]
[355954055,1741731046598,-500.0,9.531e-05,2]
[355954056,1741731046609,-500.0,9.531e-05,2]
[355954057,1741731046620,-500.0,9.531e-05,2]
[355954058,1741731046629,-500.0,9.531e-05,2]
[355954059,1741731046639,-500.0,9.531e-05,2]
[355954060,1741731046649,-500.0,9.531e-05,2]
[355954061,1741731046658,-500.0,9.531e-05,2]
[355954062,1741731046667,-500.0,9.531e-05,2]
[355954063,1741731046681,-500.0,9.531e-05,2]
[355954064,1741731046693,-500.0,9.531e-05,2]
[355954065,1741731046702,-535.89,9.531e-05,2]
[355954066,1741731046711,-1159.05,9.531e-05,2]
[355954067,1741731046721,-500.0,9.531e-05,2]
[355954068,1741731046730,-500.0,9.531e-05,2]
[355954069,1741731046739,-608.88,9.531e-05,2]
[355954070,1741731046748,-1065.72,9.531e-05,2]
[355954071,1741731046758,-1067.04,9.531e-05,2]
[355954072,1741731046768,-500.0,9.531e-05,2]
[355954073,1741731046777,-500.0,9.531e-05,2]
[355954074,1741731046786,-503.52,9.531e-05,2]
[355954075,1741731046795,-928.53,9.531e-05,2]
[355954076,1741731046804,-500.0,9.531e-05,2]
[355954077,1741731046813,-500.0,9.531e-05,2]
[355954078,1741731046822,-530.14,9.531e-05,2]
[355954079,1741731046831,-500.0,9.531e-05,2]
[355954080,1741731046841,-500.0,9.531e-05,2]
[355954081,1741731046850,-353.71760781,9.531e-05,2]
[355954082,1741731046859,-500.0,9.531e-05,2]
[355954083,1741731046870,-823.35,9.531e-05,2]
[355954084,1741731046879,-500.0,9.531e-05,2]
[355954085,1741731046888,-500.0,9.531e-05,2]
[355954086,1741731046898,-500.0,9.531e-05,2]
[355954087,1741731046907,-500.0,9.531e-05,2]
[355954088,1741731046916,-501.55,9.531e-05,2]
[355954089,1741731046926,-912.58,9.531e-05,2]
[355954090,1741731046935,-500.0,9.531e-05,2]
[355954091,1741731046944,-906.87,9.531e-05,2]
[355954092,1741731046954,-500.0,9.531e-05,2]
[355954093,1741731046963,-500.0,9.531e-05,2]
[355954094,1741731046973,-500.0,9.531e-05,2]
[355954095,1741731046982,-500.0,9.531e-05,2]
[355954096,1741731046991,-1004.16,9.531e-05,2]
[355954097,1741731047001,-679.63,9.531e-05,2]
[355954098,1741731047011,-566.1,9.531e-05,2]
[355954099,1741731047020,-501.3,9.531e-05,2]
[355954100,1741731047029,-914.81,9.531e-05,2]
[355954101,1741731047039,-500.0,9.531e-05,2]
[355954102,1741731047048,-500.0,9.531e-05,2]
[355954103,1741731047057,-500.0,9.531e-05,2]
[355954104,1741731047069,-592.19,9.531e-05,2]
[355954105,1741731047078,-500.0,9.531e-05,2]
[355954106,1741731047087,-500.0,9.531e-05,2]
[355954107,1741731047097,-792.17,9.531e-05,2]
[355954108,1741731047106,-500.0,9.531e-05,2]
[355954109,1741731047115,-500.0,9.531e-05,2]
[355954110,1741731047125,-574.46,9.531e-05,2]
[355954111,1741731047134,-978.24,9.531e-05,2]
[355954112,1741731047143,-500.0,9.531e-05,2]
[355954113,1741731047153,-500.0,9.531e-05,2]
[355954114,1741731047161,-741.21,9.531e-05,2]
[355954115,1741731047171,-500.0,9.531e-05,2]
[355954116,1741731047180,-650.55,9.531e-05,2]
[355954117,1741731047189,-864.15,9.531e-05,2]
[355954118,1741731047201,-817.17,9.531e-05,2]
[355954119,1741731047211,-500.0,9.531e-05,2]
[355954120,1741731047220,-500.0,9.531e-05,2]
[355954121,1741731047229,-651.97,9.531e-05,2]
[355954122,1741731047238,-500.0,9.531e-05,2]
[355954123,1741731047248,-697.45,9.531e-05,2]
[355954124,1741731047258,-500.0,9.531e-05,2]
[355954125,1741731047268,-500.0,9.531e-05,2]
[355954126,1741731047277,-1084.83,9.531e-05,2]
[355954127,1741731047286,-559.1,9.531e-05,2]
[355954128,1741731047295,-500.0,9.531e-05,2]
[355954129,1741731047306,-500.0,9.531e-05,2]
[355954130,1741731047315,-500.0,9.531e-05,2]
[355954131,1741731047324,-500.0,9.531e-05,2]
[355954132,1741731047334,-232.74526457,9.531e-05,2]
[355954133,1741731047343,-500.0,9.531e-05,2]
[355954134,1741731047352,-770.57,9.531e-05,2]
[355954135,1741731047361,-500.0,9.531e-05,2]
[355954136,1741731047371,-250.24303058,9.531e-05,2]
[355954137,1741731047381,-500.0,9.531e-05,2]
[355954138,1741731047390,-625.75,9.531e-05,2]
[355954139,1741731047399,-500.0,9.531e-05,2]
[355954140,1741731047407,-500.0,9.531e-05,2]
[355954141,1741731047417,-500.0,9.531e-05,2]
[355954142,1741731047426,-803.98,9.531e-05,2]
[355954143,1741731047435,-500.0,9.531e-05,2]
[355954144,1741731047444,-500.0,9.531e-05,2]
[355954145,1741731047453,-852.86,9.531e-05,2]
[355954146,1741731047462,-500.0,9.531e-05,2]
[355954147,1741731047471,-500.0,9.531e-05,2]
[355954148,1741731047480,-500.0,9.531e-05,2]
[355954149,1741731047490,-627.51156724,9.531e-05,2]
[355954150,1741731047500,-500.0,9.531e-05,2]
[355954151,1741731047509,-896.03,9.531e-05,2]
[355954152,1741731047520,-500.0,9.531e-05,2]
[355954153,1741731047529,-890.6,9.531e-05,2]
[355954154,1741731047538,-1000.45,9.531e-05,2]
[355954155,1741731047547,-614.64,9.531e-05,2]
[355954156,1741731047556,-500.0,9.531e-05,2]
[355954157,1741731047565,-945.01,9.531e-05,2]
[355954158,1741731047574,-1081.07,9.531e-05,2]
[355954159,1741731047583,-500.0,9.531e-05,2]
[355954160,1741731047592,-500.0,9.531e-05,2]
[355954161,1741731047604,-881.67,9.531e-05,2]
[355954162,1741731047614,-775.59,9.531e-05,2]
[355954163,1741731047623,-778.26,9.531e-05,2]
[355954164,1741731047633,-500.0,9.531e-05,2]
[355954165,1741731047642,-500.0,9.531e-05,2]
[355954166,1741731047651,-500.0,9.531e-05,2]
[355954167,1741731047660,-747.86,9.531e-05,2]
[355954168,1741731047670,-500.0,9.531e-05,2]
[355954169,1741731047680,-625.59,9.531e-05,2]
[355954170,1741731047689,-500.0,9.531e-05,2]
[355954171,1741731047698,-797.41,9.531e-05,2]
[355954172,1741731047707,-183.69038852,9.531e-05,2]
[355954173,1741731047717,-500.0,9.531e-05,2]
[355954174,1741731047726,-871.34,9.531e-05,2]
[355954175,1741731047735,-500.0,9.531e-05,2]
[355954176,1741731047744,-500.0,9.531e-05,2]
[355954177,1741731047753,-500.0,9.531e-05,2]
[355954178,1741731047762,-500.0,9.531e-05,2]
[355954179,1741731047771,-500.0,9.531e-05,2]
[355954180,1741731047780,-174.17994141,9.531e-05,2]
[355954181,1741731047789,-567.33346557,9.531e-05,2]
[355954182,1741731047799,-1520.17,9.531e-05,2]
[355954183,1741731047807,-500.0,9.531e-05,2]
[355954184,1741731047816,-500.0,9.531e-05,2]
[355954185,1741731047826,-500.0,9.531e-05,2]
[355954186,1741731047835,-500.0,9.531e-05,2]
[355954187,1741731047844,-500.0,9.531e-05,2]
[355954188,1741731047853,-500.0,9.531e-05,2]
[355954189,1741731047862,-500.0,9.531e-05,2]
[355954190,1741731047872,-500.0,9.531e-05,2]
[355954191,1741731047882,-1063.14,9.531e-05,2]
[355954192,1741731047891,-1033.18,9.531e-05,2]
[355954193,1741731047900,-500.0,9.531e-05,2]
[355954194,1741731047910,-940.45,9.531e-05,2]
[355954195,1741731047919,-500.0,9.531e-05,2]
[355954196,1741731047928,-500.0,9.531e-05,2]
[355954197,1741731047937,-748.5,9.531e-05,2]
[355954198,1741731047947,-500.0,9.531e-05,2]
[355954199,1741731047958,-500.0,9.531e-05,2]
[355954200,1741731047968,-500.0,9.531e-05,2]
[355954201,1741731047978,-500.0,9.531e-05,2]
[355954202,1741731047987,-500.0,9.531e-05,2]
[355954203,1741731047998,-500.0,9.531e-05,2]
[355954204,1741731048008,-500.0,9.531e-05,2]
[355954205,1741731048017,-972.03,9.531e-05,2]
[355954206,1741731048027,-1158.53,9.531e-05,2]
[355954207,1741731048036,-740.6,9.531e-05,2]
[355954208,1741731048046,-664.48,9.531e-05,2]
[355954209,1741731048056,-500.0,9.531e-05,2]
[355954210,1741731048065,-500.0,9.531e-05,2]
[355954211,1741731048075,-500.0,9.531e-05,2]
[355954212,1741731048084,-500.0,9.531e-05,2]
[355954213,1741731048094,-523.41,9.531e-05,2]
[355954214,1741731048103,-500.0,9.531e-05,2]
[355954215,1741731048113,-500.0,9.531e-05,2]
[355954216,1741731048123,-500.0,9.531e-05,2]
[355954217,1741731048133,-539.23,9.531e-05,2]
[355954218,1741731048142,-1770.81,9.531e-05,2]
[355954219,1741731048152,-500.0,9.531e-05,2]
[355954220,1741731048162,-533.65,9.531e-05,2]
[355954221,1741731048171,-213.17972706,9.531e-05,2]
[355954222,1741731048180,-204.58782196,9.531e-05,2]
[355954223,1741731048190,-500.0,9.531e-05,2]
[355954224,1741731048199,-386.91814179,9.531e-05,2]
[355954225,1741731048208,-500.0,9.531e-05,2]
[355954226,1741731048218,-500.0,9.531e-05,2]
[355954227,1741731048228,-500.0,9.531e-05,2]
[355954228,1741731048237,-500.0,9.531e-05,2]
[355954229,1741731048246,-500.0,9.532e-05,2]
[355954230,1741731048255,-500.0,9.532e-05,2]
[355954231,1741731048265,-500.0,9.532e-05,2]
[355954232,1741731048275,-500.0,9.532e-05,2]
[355954233,1741731048284,-879.82,9.532e-05,2]
[355954234,1741731048294,-610.3,9.532e-05,2]
[355954235,1741731048303,-500.0,9.532e-05,2]
[355954236,1741731048313,-548.21,9.532e-05,2]
[355954237,1741731048322,-888.53,9.532e-05,2]
[355954238,1741731048331,-500.0,9.532e-05,2]
[355954239,1741731048341,-500.0,9.532e-05,2]
[355954240,1741731048350,-500.0,9.532e-05,2]
[355954241,1741731048359,-500.0,9.532e-05,2]
[355954242,1741731048369,-500.0,9.532e-05,2]
[355954243,1741731048378,-500.0,9.532e-05,2]
[355954244,1741731048388,-574.92,9.532e-05,2]
[355954245,1741731048398,-670.52,9.532e-05,2]
[355954246,1741731048407,-500.0,9.532e-05,2]
[355954247,1741731048416,-859.61,9.532e-05,2]
[355954248,1741731048426,-500.0,9.532e-05,2]
[355954249,1741731048435,-500.0,9.532e-05,2]
[355954250,1741731048445,-500.0,9.532e-05,2]
[355954251,1741731048455,-500.0,9.532e-05,2]
[355954252,1741731048465,-612.51,9.532e-05,2]
[355954253,1741731048475,-500.0,9.532e-05,2]
[355954254,1741731048486,-928.97,9.532e-05,2]
[355954255,1741731048496,-615.13566962,9.532e-05,2]
[355954256,1741731048505,-500.0,9.532e-05,2]
[355954257,1741731048515,-500.0,9.532e-05,2]
[355954258,1741731048526,-500.0,9.532e-05,2]
[355954259,1741731048536,-500.0,9.532e-05,2]
[355954260,1741731048546,-643.13,9.532e-05,2]
[355954261,1741731048555,-500.0,9.532e-05,2]
[355954262,1741731048565,-511.07,9.532e-05,2]
[355954263,1741731048576,-500.0,9.532e-05,2]
[355954264,1741731048585,-500.0,9.532e-05,2]
[355954265,1741731048595,-500.0,9.532e-05,2]
[355954266,1741731048608,-500.0,9.532e-05,2]
[355954267,1741731048618,-500.0,9.532e-05,2]
[355954268,1741731048628,-607.22,9.532e-05,2]
[355954269,1741731048637,-658.79,9.532e-05,2]
[355954270,1741731048647,-500.0,9.532e-05,2]
[355954271,1741731048656,-671.72,9.532e-05,2]
[355954272,1741731048665,-500.0,9.532e-05,2]
[355954273,1741731048676,-500.0,9.532e-05,2]
[355954274,1741731048686,-500.0,9.532e-05,2]
[355954275,1741731048695,-500.0,9.532e-05,2]
[355954276,1741731048704,-500.0,9.532e-05,2]
[355954277,1741731048713,-514.5,9.532e-05,2]
[355954278,1741731048722,-500.0,9.532e-05,2]
[355954279,1741731048731,-500.0,9.532e-05,2]
[355954280,1741731048740,-827.54,9.532e-05,2]
[355954281,1741731048749,-500.0,9.532e-05,2]
[355954282,1741731048758,-500.0,9.532e-05,2]
[355954283,1741731048768,-500.0,9.532e-05,2]
[355954284,1741731048777,-878.56,9.532e-05,2]
[355954285,1741731048786,-504.91,9.532e-05,2]
[355954286,1741731048795,-703.51,9.532e-05,2]
[355954287,1741731048804,-891.0,9.532e-05,2]
[355954288,1741731048813,-936.92,9.532e-05,2]
[355954289,1741731048823,-926.83,9.532e-05,2]
[355954290,1741731048832,-554.86,9.532e-05,2]
[355954291,1741731048842,-741.39,9.532e-05,2]
[355954292,1741731048851,-500.0,9.532e-05,2]
[355954293,1741731048861,-500.0,9.532e-05,2]
[355954294,1741731048872,-500.0,9.532e-05,2]
[355954295,1741731048882,-500.0,9.532e-05,2]
[355954296,1741731048892,-2394.1,9.532e-05,2]
[355954297,1741731048901,-500.0,9.532e-05,2]
[355954298,1741731048910,-1115.75,9.532e-05,2]
[355954299,1741731048920,-500.0,9.532e-05,2]
[355954300,1741731048930,-778.73,9.532e-05,2]
[355954301,1741731048940,-500.0,9.532e-05,2]
[355954302,1741731048949,-636.04,9.532e-05,2]
[355954303,1741731048958,-604.22,9.532e-05,2]
[355954304,1741731048968,-500.0,9.532e-05,2]
[355954305,1741731048977,-744.87,9.532e-05,2]
[355954306,1741731048986,-500.0,9.532e-05,2]
[355954307,1741731048996,-733.3,9.532e-05,2]
[355954308,1741731049006,-395.03,9.532e-05,2]
[355954309,1741731049015,-683.35,9.532e-05,2]
[355954310,1741731049025,-637.51,9.532e-05,2]
[355954311,1741731049035,-500.0,9.532e-05,2]
[355954312,1741731049044,-890.37,9.532e-05,2]
[355954313,1741731049054,-500.0,9.532e-05,2]
[355954314,1741731049063,-554.21,9.532e-05,2]
[355954315,1741731049073,-1032.96,9.532e-05,2]
[355954316,1741731049082,-798.96,9.532e-05,2]
[355954317,1741731049092,-898.07,9.532e-05,2]
[355954318,1741731049102,-500.0,9.532e-05,2]
[355954319,1741731049111,-1048.63,9.532e-05,2]
[355954320,1741731049122,-704.22,9.532e-05,2]
[355954321,1741731049131,-500.0,9.532e-05,2]
[355954322,1741731049140,-500.0,9.532e-05,2]
[355954323,1741731049150,-500.0,9.532e-05,2]
[355954324,1741731049159,-500.0,9.532e-05,2]